{"text_format":"3","workbook":"xlsx","n_sheets":1,"sheets":["Inventāra saraksts"],"not_rendered":{"images":1,"defined_names":3},"read":"whole","date_system":"1900"}

{"sheet":"Inventāra saraksts","index":0,"n_rows":28,"n_cols":13,"rows_kept":28}
[{"$nulls":12}," "]
[{"$nulls":10},"Vai iezīmēt preces pasūtīšanai?","Jā"]
[null,"Atkārtotai pasūtīšanai","Krājumu vienuma ID","Nosaukums","Apraksts","Vienības cena","Krājumā esošais daudzums","Krājumu vērtība","Pasūtīšanas līmenis","Pasūtīšanas laiks dienās","Atkārtoti pasūtāms daudzums","Vairs netiek piedāvāts?"]
[null,{"$f":"IFERROR((Inventāra_saraksta_tabula[[#This Row],[Krājumā esošais daudzums]]<=Inventāra_saraksta_tabula[[#This Row],[Pasūtīšanas līmenis]])*(Inventāra_saraksta_tabula[[#This Row],[Vairs netiek piedāvāts?]]=\"\")*valHighlight,0)","v":1},"IN0001","1. prece","1. apraksts",{"v":51,"d":"51.00 EUR"},25,{"$f":"Inventāra_saraksta_tabula[[#This Row],[Vienības cena]]*Inventāra_saraksta_tabula[[#This Row],[Krājumā esošais daudzums]]","v":{"v":1275,"d":"1,275.00 EUR"}},29,13,50]
[null,{"$f":"IFERROR((Inventāra_saraksta_tabula[[#This Row],[Krājumā esošais daudzums]]<=Inventāra_saraksta_tabula[[#This Row],[Pasūtīšanas līmenis]])*(Inventāra_saraksta_tabula[[#This Row],[Vairs netiek piedāvāts?]]=\"\")*valHighlight,0)","v":1},"IN0002","2. vienums","2. apraksts",{"v":93,"d":"93.00 EUR"},132,{"$f":"Inventāra_saraksta_tabula[[#This Row],[Vienības cena]]*Inventāra_saraksta_tabula[[#This Row],[Krājumā esošais daudzums]]","v":{"v":12276,"d":"12,276.00 EUR"}},231,4,50]
[null,{"$f":"IFERROR((Inventāra_saraksta_tabula[[#This Row],[Krājumā esošais daudzums]]<=Inventāra_saraksta_tabula[[#This Row],[Pasūtīšanas līmenis]])*(Inventāra_saraksta_tabula[[#This Row],[Vairs netiek piedāvāts?]]=\"\")*valHighlight,0)","v":0},"IN0003","3. vienums","3. apraksts",{"v":57,"d":"57.00 EUR"},151,{"$f":"Inventāra_saraksta_tabula[[#This Row],[Vienības cena]]*Inventāra_saraksta_tabula[[#This Row],[Krājumā esošais daudzums]]","v":{"v":8607,"d":"8,607.00 EUR"}},114,11,150]
[null,{"$f":"IFERROR((Inventāra_saraksta_tabula[[#This Row],[Krājumā esošais daudzums]]<=Inventāra_saraksta_tabula[[#This Row],[Pasūtīšanas līmenis]])*(Inventāra_saraksta_tabula[[#This Row],[Vairs netiek piedāvāts?]]=\"\")*valHighlight,0)","v":0},"IN0004","4. prece","4. apraksts",{"v":19,"d":"19.00 EUR"},186,{"$f":"Inventāra_saraksta_tabula[[#This Row],[Vienības cena]]*Inventāra_saraksta_tabula[[#This Row],[Krājumā esošais daudzums]]","v":{"v":3534,"d":"3,534.00 EUR"}},158,6,50]
[null,{"$f":"IFERROR((Inventāra_saraksta_tabula[[#This Row],[Krājumā esošais daudzums]]<=Inventāra_saraksta_tabula[[#This Row],[Pasūtīšanas līmenis]])*(Inventāra_saraksta_tabula[[#This Row],[Vairs netiek piedāvāts?]]=\"\")*valHighlight,0)","v":0},"IN0005","5. prece","5. apraksts",{"v":75,"d":"75.00 EUR"},62,{"$f":"Inventāra_saraksta_tabula[[#This Row],[Vienības cena]]*Inventāra_saraksta_tabula[[#This Row],[Krājumā esošais daudzums]]","v":{"v":4650,"d":"4,650.00 EUR"}},39,12,50]
[null,{"$f":"IFERROR((Inventāra_saraksta_tabula[[#This Row],[Krājumā esošais daudzums]]<=Inventāra_saraksta_tabula[[#This Row],[Pasūtīšanas līmenis]])*(Inventāra_saraksta_tabula[[#This Row],[Vairs netiek piedāvāts?]]=\"\")*valHighlight,0)","v":1},"IN0006","6. prece","6. apraksts",{"v":11,"d":"11.00 EUR"},5,{"$f":"Inventāra_saraksta_tabula[[#This Row],[Vienības cena]]*Inventāra_saraksta_tabula[[#This Row],[Krājumā esošais daudzums]]","v":{"v":55,"d":"55.00 EUR"}},9,13,150]
[null,{"$f":"IFERROR((Inventāra_saraksta_tabula[[#This Row],[Krājumā esošais daudzums]]<=Inventāra_saraksta_tabula[[#This Row],[Pasūtīšanas līmenis]])*(Inventāra_saraksta_tabula[[#This Row],[Vairs netiek piedāvāts?]]=\"\")*valHighlight,0)","v":0},"IN0007","7. prece","7. apraksts",{"v":56,"d":"56.00 EUR"},58,{"$f":"Inventāra_saraksta_tabula[[#This Row],[Vienības cena]]*Inventāra_saraksta_tabula[[#This Row],[Krājumā esošais daudzums]]","v":{"v":3248,"d":"3,248.00 EUR"}},109,7,100,"Jā"]
[null,{"$f":"IFERROR((Inventāra_saraksta_tabula[[#This Row],[Krājumā esošais daudzums]]<=Inventāra_saraksta_tabula[[#This Row],[Pasūtīšanas līmenis]])*(Inventāra_saraksta_tabula[[#This Row],[Vairs netiek piedāvāts?]]=\"\")*valHighlight,0)","v":1},"IN0008","8. prece","8. apraksts",{"v":38,"d":"38.00 EUR"},101,{"$f":"Inventāra_saraksta_tabula[[#This Row],[Vienības cena]]*Inventāra_saraksta_tabula[[#This Row],[Krājumā esošais daudzums]]","v":{"v":3838,"d":"3,838.00 EUR"}},162,3,100]
[null,{"$f":"IFERROR((Inventāra_saraksta_tabula[[#This Row],[Krājumā esošais daudzums]]<=Inventāra_saraksta_tabula[[#This Row],[Pasūtīšanas līmenis]])*(Inventāra_saraksta_tabula[[#This Row],[Vairs netiek piedāvāts?]]=\"\")*valHighlight,0)","v":0},"IN0009","9. prece","9. apraksts",{"v":59,"d":"59.00 EUR"},122,{"$f":"Inventāra_saraksta_tabula[[#This Row],[Vienības cena]]*Inventāra_saraksta_tabula[[#This Row],[Krājumā esošais daudzums]]","v":{"v":7198,"d":"7,198.00 EUR"}},82,3,150]
[null,{"$f":"IFERROR((Inventāra_saraksta_tabula[[#This Row],[Krājumā esošais daudzums]]<=Inventāra_saraksta_tabula[[#This Row],[Pasūtīšanas līmenis]])*(Inventāra_saraksta_tabula[[#This Row],[Vairs netiek piedāvāts?]]=\"\")*valHighlight,0)","v":1},"IN0010","10. prece","10. apraksts",{"v":50,"d":"50.00 EUR"},175,{"$f":"Inventāra_saraksta_tabula[[#This Row],[Vienības cena]]*Inventāra_saraksta_tabula[[#This Row],[Krājumā esošais daudzums]]","v":{"v":8750,"d":"8,750.00 EUR"}},283,8,150]
[null,{"$f":"IFERROR((Inventāra_saraksta_tabula[[#This Row],[Krājumā esošais daudzums]]<=Inventāra_saraksta_tabula[[#This Row],[Pasūtīšanas līmenis]])*(Inventāra_saraksta_tabula[[#This Row],[Vairs netiek piedāvāts?]]=\"\")*valHighlight,0)","v":1},"IN0011","11. prece","11. apraksts",{"v":59,"d":"59.00 EUR"},176,{"$f":"Inventāra_saraksta_tabula[[#This Row],[Vienības cena]]*Inventāra_saraksta_tabula[[#This Row],[Krājumā esošais daudzums]]","v":{"v":10384,"d":"10,384.00 EUR"}},229,1,100]
[null,{"$f":"IFERROR((Inventāra_saraksta_tabula[[#This Row],[Krājumā esošais daudzums]]<=Inventāra_saraksta_tabula[[#This Row],[Pasūtīšanas līmenis]])*(Inventāra_saraksta_tabula[[#This Row],[Vairs netiek piedāvāts?]]=\"\")*valHighlight,0)","v":1},"IN0012","12. prece","12. apraksts",{"v":18,"d":"18.00 EUR"},22,{"$f":"Inventāra_saraksta_tabula[[#This Row],[Vienības cena]]*Inventāra_saraksta_tabula[[#This Row],[Krājumā esošais daudzums]]","v":{"v":396,"d":"396.00 EUR"}},36,12,50]
[null,{"$f":"IFERROR((Inventāra_saraksta_tabula[[#This Row],[Krājumā esošais daudzums]]<=Inventāra_saraksta_tabula[[#This Row],[Pasūtīšanas līmenis]])*(Inventāra_saraksta_tabula[[#This Row],[Vairs netiek piedāvāts?]]=\"\")*valHighlight,0)","v":1},"IN0013","13. prece","13. apraksts",{"v":26,"d":"26.00 EUR"},72,{"$f":"Inventāra_saraksta_tabula[[#This Row],[Vienības cena]]*Inventāra_saraksta_tabula[[#This Row],[Krājumā esošais daudzums]]","v":{"v":1872,"d":"1,872.00 EUR"}},102,9,100]
[null,{"$f":"IFERROR((Inventāra_saraksta_tabula[[#This Row],[Krājumā esošais daudzums]]<=Inventāra_saraksta_tabula[[#This Row],[Pasūtīšanas līmenis]])*(Inventāra_saraksta_tabula[[#This Row],[Vairs netiek piedāvāts?]]=\"\")*valHighlight,0)","v":1},"IN0014","14. prece","14. apraksts",{"v":42,"d":"42.00 EUR"},62,{"$f":"Inventāra_saraksta_tabula[[#This Row],[Vienības cena]]*Inventāra_saraksta_tabula[[#This Row],[Krājumā esošais daudzums]]","v":{"v":2604,"d":"2,604.00 EUR"}},83,2,100]
[null,{"$f":"IFERROR((Inventāra_saraksta_tabula[[#This Row],[Krājumā esošais daudzums]]<=Inventāra_saraksta_tabula[[#This Row],[Pasūtīšanas līmenis]])*(Inventāra_saraksta_tabula[[#This Row],[Vairs netiek piedāvāts?]]=\"\")*valHighlight,0)","v":0},"IN0015","15. prece","15. apraksts",{"v":32,"d":"32.00 EUR"},46,{"$f":"Inventāra_saraksta_tabula[[#This Row],[Vienības cena]]*Inventāra_saraksta_tabula[[#This Row],[Krājumā esošais daudzums]]","v":{"v":1472,"d":"1,472.00 EUR"}},23,15,50]
[null,{"$f":"IFERROR((Inventāra_saraksta_tabula[[#This Row],[Krājumā esošais daudzums]]<=Inventāra_saraksta_tabula[[#This Row],[Pasūtīšanas līmenis]])*(Inventāra_saraksta_tabula[[#This Row],[Vairs netiek piedāvāts?]]=\"\")*valHighlight,0)","v":1},"IN0016","16. prece","16. apraksts",{"v":90,"d":"90.00 EUR"},96,{"$f":"Inventāra_saraksta_tabula[[#This Row],[Vienības cena]]*Inventāra_saraksta_tabula[[#This Row],[Krājumā esošais daudzums]]","v":{"v":8640,"d":"8,640.00 EUR"}},180,3,50]
[null,{"$f":"IFERROR((Inventāra_saraksta_tabula[[#This Row],[Krājumā esošais daudzums]]<=Inventāra_saraksta_tabula[[#This Row],[Pasūtīšanas līmenis]])*(Inventāra_saraksta_tabula[[#This Row],[Vairs netiek piedāvāts?]]=\"\")*valHighlight,0)","v":0},"IN0017","17. prece","17. apraksts",{"v":97,"d":"97.00 EUR"},57,{"$f":"Inventāra_saraksta_tabula[[#This Row],[Vienības cena]]*Inventāra_saraksta_tabula[[#This Row],[Krājumā esošais daudzums]]","v":{"v":5529,"d":"5,529.00 EUR"}},98,12,50,"Jā"]
[null,{"$f":"IFERROR((Inventāra_saraksta_tabula[[#This Row],[Krājumā esošais daudzums]]<=Inventāra_saraksta_tabula[[#This Row],[Pasūtīšanas līmenis]])*(Inventāra_saraksta_tabula[[#This Row],[Vairs netiek piedāvāts?]]=\"\")*valHighlight,0)","v":1},"IN0018","18. prece","18. apraksts",{"v":12,"d":"12.00 EUR"},6,{"$f":"Inventāra_saraksta_tabula[[#This Row],[Vienības cena]]*Inventāra_saraksta_tabula[[#This Row],[Krājumā esošais daudzums]]","v":{"v":72,"d":"72.00 EUR"}},7,13,50]
[null,{"$f":"IFERROR((Inventāra_saraksta_tabula[[#This Row],[Krājumā esošais daudzums]]<=Inventāra_saraksta_tabula[[#This Row],[Pasūtīšanas līmenis]])*(Inventāra_saraksta_tabula[[#This Row],[Vairs netiek piedāvāts?]]=\"\")*valHighlight,0)","v":1},"IN0019","19. prece","19. apraksts",{"v":82,"d":"82.00 EUR"},143,{"$f":"Inventāra_saraksta_tabula[[#This Row],[Vienības cena]]*Inventāra_saraksta_tabula[[#This Row],[Krājumā esošais daudzums]]","v":{"v":11726,"d":"11,726.00 EUR"}},164,12,150]
[null,{"$f":"IFERROR((Inventāra_saraksta_tabula[[#This Row],[Krājumā esošais daudzums]]<=Inventāra_saraksta_tabula[[#This Row],[Pasūtīšanas līmenis]])*(Inventāra_saraksta_tabula[[#This Row],[Vairs netiek piedāvāts?]]=\"\")*valHighlight,0)","v":0},"IN0020","20. prece","20. apraksts",{"v":16,"d":"16.00 EUR"},124,{"$f":"Inventāra_saraksta_tabula[[#This Row],[Vienības cena]]*Inventāra_saraksta_tabula[[#This Row],[Krājumā esošais daudzums]]","v":{"v":1984,"d":"1,984.00 EUR"}},113,14,50]
[null,{"$f":"IFERROR((Inventāra_saraksta_tabula[[#This Row],[Krājumā esošais daudzums]]<=Inventāra_saraksta_tabula[[#This Row],[Pasūtīšanas līmenis]])*(Inventāra_saraksta_tabula[[#This Row],[Vairs netiek piedāvāts?]]=\"\")*valHighlight,0)","v":0},"IN0021","21. prece","21. apraksts",{"v":19,"d":"19.00 EUR"},112,{"$f":"Inventāra_saraksta_tabula[[#This Row],[Vienības cena]]*Inventāra_saraksta_tabula[[#This Row],[Krājumā esošais daudzums]]","v":{"v":2128,"d":"2,128.00 EUR"}},75,11,50]
[null,{"$f":"IFERROR((Inventāra_saraksta_tabula[[#This Row],[Krājumā esošais daudzums]]<=Inventāra_saraksta_tabula[[#This Row],[Pasūtīšanas līmenis]])*(Inventāra_saraksta_tabula[[#This Row],[Vairs netiek piedāvāts?]]=\"\")*valHighlight,0)","v":0},"IN0022","22. prece","22. apraksts",{"v":24,"d":"24.00 EUR"},182,{"$f":"Inventāra_saraksta_tabula[[#This Row],[Vienības cena]]*Inventāra_saraksta_tabula[[#This Row],[Krājumā esošais daudzums]]","v":{"v":4368,"d":"4,368.00 EUR"}},132,15,150]
[null,{"$f":"IFERROR((Inventāra_saraksta_tabula[[#This Row],[Krājumā esošais daudzums]]<=Inventāra_saraksta_tabula[[#This Row],[Pasūtīšanas līmenis]])*(Inventāra_saraksta_tabula[[#This Row],[Vairs netiek piedāvāts?]]=\"\")*valHighlight,0)","v":0},"IN0023","23. prece","23. apraksts",{"v":29,"d":"29.00 EUR"},106,{"$f":"Inventāra_saraksta_tabula[[#This Row],[Vienības cena]]*Inventāra_saraksta_tabula[[#This Row],[Krājumā esošais daudzums]]","v":{"v":3074,"d":"3,074.00 EUR"}},142,1,150,"Jā"]
[null,{"$f":"IFERROR((Inventāra_saraksta_tabula[[#This Row],[Krājumā esošais daudzums]]<=Inventāra_saraksta_tabula[[#This Row],[Pasūtīšanas līmenis]])*(Inventāra_saraksta_tabula[[#This Row],[Vairs netiek piedāvāts?]]=\"\")*valHighlight,0)","v":0},"IN0024","24. prece","24. apraksts",{"v":75,"d":"75.00 EUR"},173,{"$f":"Inventāra_saraksta_tabula[[#This Row],[Vienības cena]]*Inventāra_saraksta_tabula[[#This Row],[Krājumā esošais daudzums]]","v":{"v":12975,"d":"12,975.00 EUR"}},127,9,100]
[null,{"$f":"IFERROR((Inventāra_saraksta_tabula[[#This Row],[Krājumā esošais daudzums]]<=Inventāra_saraksta_tabula[[#This Row],[Pasūtīšanas līmenis]])*(Inventāra_saraksta_tabula[[#This Row],[Vairs netiek piedāvāts?]]=\"\")*valHighlight,0)","v":0},"IN0025","25. prece","25. apraksts",{"v":14,"d":"14.00 EUR"},28,{"$f":"Inventāra_saraksta_tabula[[#This Row],[Vienības cena]]*Inventāra_saraksta_tabula[[#This Row],[Krājumā esošais daudzums]]","v":{"v":392,"d":"392.00 EUR"}},21,8,50]